Cogmind - Beta 13 @@@ ROGUE MODE // 2024.04.16 @ 00:53:24 Player: nfd Result: Destroyed by G-34 Mercenary with Small Laser Performance ------------- Evolutions (1) 500 Regions Visited (3) 600 Robots Destroyed (13) 65 Value Destroyed (461) 461 Prototype IDs (0) 0 Alien Tech Used (0) 0 Bonus (50) 50 TOTAL SCORE: 1676 Bonus ------- Follower Combat Kills 50 Cogmind --------- Core Integrity 0/400 Matter 229/300 Energy 74/100 System Corruption 0% Temperature Cool (20) Movement Core (50) Location -9/Materials Parts ------- > --- POWER (1) -------- (None) > --- PROPULSION (3) --- (None) > --- UTILITY (3) ------ (None) > --- WEAPON (2) ------- Beam Cannon > --- INVENTORY (5) ---- Heat Sink Small Matter Pod (0) High-powered Tractor Beam Decoy Drone Bay Peak State ------------ > --- POWER ------------ Light Nuclear Core > --- PROPULSION ------- Wheel Wheel Wheel > --- UTILITY ---------- Small Storage Unit Visual Processing Unit Field Recycling Unit > --- WEAPON ----------- Heavy Assault Rifle Rocket Launcher > --- INVENTORY -------- Light Nuclear Core Heat Sink Small Matter Pod Decoy Drone Bay Heavy Assault Rifle EMP Blaster [Rating: 17] Favorites ----------- Power Light Nuclear Core Engine Light Ion Engine Power Core Light Nuclear Core Propulsion Wheel Treads Light Treads Leg Aluminum Leg Wheel Wheel Utility Small Storage Unit Device Field Recycling Unit Storage Small Storage Unit Processor Visual Processing Unit Weapon Heavy Assault Rifle Energy Gun Spread Laser Energy Cannon Beam Cannon Ballistic Gun Heavy Assault Rifle Launcher Rocket Launcher Build | -11 -10 -10 -9 ------- Run | Yrd Mat Min Mat Slots Evolved 2 | . . . 2 Power . | . . . . Propulsion 1 | . . . 1 Utility 1 | . . . 1 Weapon . | . . . . Parts Attached 25 | 6 6 1 12 Power 4 | 1 1 . 2 Engine 1 | 1 . . . Core 3 | . 1 . 2 Reactor . | . . . . Propulsion 7 | 2 . . 5 Treads 2 | . . . 2 Leg 2 | . . . 2 Wheel 3 | 2 . . 1 Hover . | . . . . Flight . | . . . . Utility 5 | 1 3 . 1 Device 1 | . . . 1 Storage 3 | 1 2 . . Processor 1 | . 1 . . Hackware . | . . . . Protection . | . . . . Artifact . | . . . . Weapon 9 | 2 2 1 4 Energy Gun 1 | . . . 1 Energy Cannon 1 | . . . 1 Ballistic Gun 5 | 2 2 . 1 Ballistic Cannon . | . . . . Launcher 2 | . . 1 1 Special Weapon . | . . . . Impact Weapon . | . . . . Slashing Weapon . | . . . . Piercing Weapon . | . . . . Special Melee Weapon . | . . . . Unidentified Prototypes . | . . . . Parts Lost 14 | . . . 14 Power 3 | . . . 3 Propulsion 6 | . . . 6 Utility . | . . . . Weapon 5 | . . . 5 Highest Loss Streak 8 | . . . 8 To Critical Strikes . | . . . . Average Slot Usage (%) 90 | . 99 100 79 Engine 1 | . 6 . . Core 8 | . 7 14 6 Treads 2 | . . . 5 Leg 2 | . . . 4 Wheel 22 | . 28 28 16 Device 3 | . . . 8 Storage 12 | . 14 14 10 Processor 12 | . 13 14 10 Ballistic Gun 19 | . 28 26 8 Launcher 3 | . . 1 6 Naked Turns 25 | . . . 25 Heaviest Build 29 | 11 29 17 25 Greatest Support 40 | 20 20 20 40 Greatest Overweight (x) 2 | . 1 . 2 Average Overweight (x) . | . . . . Largest Inventory Capacity 15 | 8 15 8 8 Average Capacity 7 | 6 8 8 7 Most Carried 8 | 6 8 8 8 Average Carried 7 | 2 7 7 6 Final Capacity 8 | 8 8 8 5 Final Carried 8 | 6 8 8 5 Class Distribution -------------------- 100% | Mutant Dominant Class ---------------- Mutant | -10/Materials Mutant | -10/Mines Mutant | -9/Materials Resources | -11 -10 -10 -9 ----------- Run | Yrd Mat Min Mat Matter Collected 522 | 199 217 . 106 Remotely . | . . . . Salvage Created 424 | . 200 . 224 Parts 24 | . 13 . 11 Haulers Intercepted . | . . . . Recyclers Shooed . | . . . . Parts Field Recycled . | . . . . Retrieved Matter . | . . . . Parts Self-Destructed . | . . . . Prevented . | . . . . Kills | -11 -10 -10 -9 ------- Run | Yrd Mat Min Mat Combat Hostiles Destroyed 11 | . 4 . 7 Guns 7 | . 4 . 3 Cannons 2 | . . . 2 AOE 2 | . . . 2 Classes Destroyed 5 | . 2 . 3 Watcher 2 | . 1 . 1 Swarmer 2 | . . . 2 Grunt 4 | . 4 . . Duelist 1 | . . . 1 Sentry 4 | . . . 4 Best Kill Streak 2 | . 2 . 2 Combat Bots Only 2 | . 2 . 2 Max Kills in Single Turn 2 | . 1 . 2 Gunslinging . | . . . . Exploded 1 | . . . 1 Melee . | . . . . Uniques/NPCs Destroyed . | . . . . Combat | -11 -10 -10 -9 -------- Run | Yrd Mat Min Mat Hostile Shots Fired 173 | . 23 . 150 Missed 43 | . 2 . 41 Damage Taken 1694 | . 257 . 1437 Core 431 | . 29 . 402 Absorbed by Shields . | . . . . Core Remaining (%) 94 | 100 . 88 . Volleys Fired 50 | . 16 2 32 Largest 2 | . 2 2 2 Hottest 88 | . 46 56 88 Shots Fired 69 | . 32 3 34 Gun 52 | . 32 1 19 Cannon 7 | . . . 7 Launcher 10 | . . 2 8 Special . | . . . . Kinetic 43 | . 32 1 10 Thermal 16 | . . . 16 Explosive 7 | . . 2 5 Electromagnetic 3 | . . . 3 Robot Hit Streak 8 | . 8 . 5 Robot Miss Streak 4 | . 1 . 4 Penetration Max . | . . . . Secondary Targets 1 | . 1 . . Max Gunslinging Chain 1 | . 1 . . Shots Hit Robots 51 | . 25 . 26 Core Hits 28 | . 10 . 18 Critical Kills . | . . . . Critical Parts Destroyed . | . . . . Critical Strikes . | . . . . Melee Attacks . | . . . . Impact . | . . . . Slashing . | . . . . Piercing . | . . . . Sneak Attacks . | . . . . Combat Hostiles . | . . . . Follow-up Attacks . | . . . . Damage Inflicted 979 | . 368 . 611 Guns 644 | . 368 . 276 Cannons 71 | . . . 71 Explosions 257 | . . . 257 Melee . | . . . . Ramming 7 | . . . 7 Kinetic 493 | . 368 . 125 Thermal 222 | . . . 222 Explosive 160 | . . . 160 Electromagnetic 97 | . . . 97 Impact . | . . . . Slashing . | . . . . Piercing . | . . . . Highest Corruption . | . . . . Average Corruption . | . . . . Corruption Purged . | . . . . Corruption Blocked . | . . . . Overload Shots . | . . . . Overflow Damage . | . . . . Projectiles . | . . . . Explosions . | . . . . Melee . | . . . . Knockbacks . | . . . . Impact . | . . . . Kinetic . | . . . . Secondary . | . . . . Self-Inflicted Damage 33 | . . . 33 Shots 3 | . . . 3 Rammed 1 | . . . 1 Targets Rammed 1 | . . . 1 Kicked . | . . . . Crushed . | . . . . Highest Temperature 71 | . 15 . 71 Average Temperature 12 | . 9 . 15 Received Heat Transfer 612 | . 147 . 465 Siege Activations . | . . . . Robots Corrupted . | . . . . Combat Hostiles . | . . . . Parts Fried . | . . . . Impact Corruptions . | . . . . Robots Melted . | . . . . Combat Hostiles . | . . . . Parts Melted . | . . . . Heat Transferred 323 | . . . 323 Parts Sabotaged . | . . . . Parts Stolen . | . . . . Parts Stripped . | . . . . Power Chain Reactions . | . . . . Alert | -11 -10 -10 -9 ------- Run | Yrd Mat Min Mat Peak Influence 160 | . 160 14 108 Initial 5 | . . . 5 Average 41 | . 98 1 32 Maximum Alert Level . | . . . . Low Security (%) 100 | 100 100 100 100 Level 1 . | . . . . Level 2 . | . . . . Level 3 . | . . . . Level 4 . | . . . . Level 5 . | . . . . High Security . | . . . . Max Security . | . . . . Squads Dispatched 2 | . . 1 1 Investigation 1 | . . . 1 Extermination . | . . . . Reinforcement . | . . . . Assault 1 | . . 1 . Garrison . | . . . . Intercept . | . . . . Searches Triggered . | . . . . Construction Impeded . | . . . . Haulers Reinforced . | . . . . Active Scanning Responses . | . . . . Cargo Convoy Interrupts . | . . . . Stealth | -11 -10 -10 -9 --------- Run | Yrd Mat Min Mat Distress Signals . | . . . . Communications Jammed . | . . . . Distress Signals . | . . . . Times Spotted 29 | . 8 . 21 Peak Tracking Total 9 | . 2 . 9 Tactical Retreats 3 | . 1 . 2 Traps | -11 -10 -10 -9 ------- Run | Yrd Mat Min Mat Traps Triggered . | . . . . Indirectly . | . . . . Trap Hack Attempts . | . . . . Triggered . | . . . . Disarmed . | . . . . Reprogrammed . | . . . . Reused . | . . . . Traps Extracted . | . . . . Installed . | . . . . Triggered . | . . . . Machines | -11 -10 -10 -9 ---------- Run | Yrd Mat Min Mat Machines Disabled 2 | . . . 2 Max in Single Turn 1 | . . . 1 Machines Repaired . | . . . . Machines Dismantled . | . . . . Machines Sabotaged . | . . . . Overloaded Fab Kills . | . . . . Hacking | -11 -10 -10 -9 --------- Run | Yrd Mat Min Mat Machines Accessed 7 | . 3 1 3 Terminals 6 | . 3 . 3 Fabricators . | . . . . Repair Stations . | . . . . Recycling Units . | . . . . Scanalyzers . | . . . . Garrison Access . | . . . . Total Hacks 17 | . 6 1 10 Successful 6 | . 2 1 3 Failed 11 | . 4 . 7 Catastrophic 5 | . 4 . 1 Database Lockouts . | . . . . Manual 11 | . 4 . 7 Terminals 16 | . 6 . 10 Fabricators . | . . . . Repair Stations . | . . . . Recycling Units . | . . . . Scanalyzers . | . . . . Garrison Access . | . . . . Terminal Hacks 6 | . 2 1 3 Record 1 | . . . 1 Robot Analysis 1 | . . . 1 Open Door 1 | . . 1 . Level Access Points 1 | . 1 . . Branch Access Points 1 | . . . 1 Alert Level 1 | . 1 . . Fabricator Hacks . | . . . . Repair Station Hacks . | . . . . Recycling Unit Hacks . | . . . . Scanalyzer . | . . . . Garrison Access Hacks . | . . . . Unauthorized Hacks . | . . . . Terminals . | . . . . Fabricators . | . . . . Repair Stations . | . . . . Recycling Units . | . . . . Scanalyzers . | . . . . Garrison Access . | . . . . Data Cores Recovered . | . . . . Used . | . . . . Hacking Detections 6 | . 3 . 3 Full Trace Events 1 | . . . 1 Feedback Events . | . . . . Feedback Blocked . | . . . . Robot Schematics Acquired . | . . . . Robots Built . | . . . . Authchips . | . . . . Time . | . . . . Total Robot Build Rating . | . . . . Part Schematics Acquired . | . . . . Parts Built . | . . . . Authchips . | . . . . Time . | . . . . Total Part Build Rating . | . . . . Parts Repaired . | . . . . Time . | . . . . Parts Recycled . | . . . . Recycled Matter . | . . . . Retrieved Matter . | . . . . Retrieved Components . | . . . . Parts Scanalyzed . | . . . . Part Schematics Acquired . | . . . . Parts Damaged . | . . . . Bothacking | -11 -10 -10 -9 ------------ Run | Yrd Mat Min Mat Used RIF Installer . | . . . . Robots Hacked . | . . . . Non-combat . | . . . . Combat . | . . . . Robot Hacks Applied . | . . . . Relay Couplers Released . | . . . . Fabnet Peak Effective % . | . . . . Robots Rewired . | . . . . Allies Hacked . | . . . . Hacks Repelled . | . . . . Allies | -11 -10 -10 -9 -------- Run | Yrd Mat Min Mat Total Allies 4 | . . 4 . Largest Group 4 | . . 4 4 Highest-Rated Group 71 | . . 71 71 Highest-Rated Ally 31 | . . 31 31 Total Orders 2 | . . . 2 STAY 1 | . . . 1 FOLLOW 1 | . . . 1 Ally Attacks 14 | . . . 14 Total Damage 186 | . . . 186 Kills 2 | . . . 2 Allies Corrupted . | . . . . Allies Melted . | . . . . Intel | -11 -10 -10 -9 ------- Run | Yrd Mat Min Mat Robot Analysis Total 1 | . . . 1 Derelict Logs Recovered 1 | . . 1 . Drone Launches . | . . . . Drone Recoveries . | . . . . Exploration | -11 -10 -10 -9 ------------- Run | Yrd Mat Min Mat Turns Passed 1433 | 45 403 374 611 Spaces Moved 1270 | 38 400 406 426 Core 53 | 5 . . 48 Treads 89 | . . . 89 Legs 19 | . . . 19 Wheels 1109 | 33 400 406 270 Hover . | . . . . Flight . | . . . . Fastest Speed 50 | 50 80 80 50 Average Speed 87 | 76 80 80 101 Slowest Speed 260 | 80 95 80 260 Overloaded Moves . | . . . . Propulsion Burnouts . | . . . . Robots Hopped . | . . . . Cave-ins Triggered . | . . . . Exploration Rate (%) 44 | 4 46 80 47 Regions Visited 3 Branch Regions 1 Pre-discovered Areas . | . . . . Known Exits Taken 1 | . . 1 . Unknown Exits Taken 2 | 1 1 . . Scrap Searched . | . . . . Spaces Dug 22 | . . 22 . Terrain Destroyed 56 | . . 22 34 Melee . | . . . . Projectile . | . . . . AOE 56 | . . 22 34 Terrain Rammed . | . . . . Walls Destroyed . | . . . . Machines Disabled . | . . . . Actions | -11 -10 -10 -9 --------- Run | Yrd Mat Min Mat Total 1525 | 52 453 453 567 Wait 145 | . 14 38 93 Move 1267 | 37 399 405 426 Hop . | . . . . Pick Up 23 | 9 8 3 3 Fast Attach 10 | 3 1 . 6 Attach 9 | 3 . . 6 Detach . | . . . . Swap 6 | . 5 1 . Drop 14 | . 10 4 . Fire 50 | . 16 2 32 Melee . | . . . . Ram 1 | . . . 1 Kick . | . . . . Crush . | . . . . Escape Stasis . | . . . . Rewire . | . . . . Trap . | . . . . Miscellaneous . | . . . . Route ------- -11/Scrapyard -10/Materials (discovered 4 exits: *Mat x3 / *Min) -10/Mines (discovered 2 exits: *Mat x2) -9/Materials (discovered 2 exits: Min x2) History --------- Turn | Location | Event 31 | -11/Scrapyard | Discovered new exit (range 15) 46 | -11/Scrapyard | Entered Materials 147 | -10/Materials | Identified exit to Materials 300 | -10/Materials | Build established: Mutant 333 | -10/Materials | Discovered new exit (range 9) 449 | -10/Materials | Entered Mines 469 | -10/Mines | Assisted by bots powering up and referring to "LRC-V3" 513 | -10/Mines | Discovered exit to Materials (range 5) 523 | -10/Mines | Found the Drone Emporium 529 | -10/Mines | Found Prototype Device 548 | -10/Mines | Discovered exit to Materials (range 5) 611 | -10/Mines | Met a Derelict testing a Signal Generator 675 | -10/Mines | Received a Rocket Launcher from a helpful Derelict 734 | -10/Mines | Learned Materials trap positions 823 | -10/Mines | Entered Materials 823 | -9/Materials | Accompanied by 4 allies 823 | -9/Materials | Evolved 2 slots: Propulsion x1, Utility x1 824 | -9/Materials | Loaded intel: 13 trap records 854 | -9/Materials | Identified exit to Mines 1109 | -9/Materials | Lost 3 allies 1203 | -9/Materials | Core integrity fell below 50% 1236 | -9/Materials | Lost 8 parts (2p3n3w) 1393 | -9/Materials | Released all parts (4) 1412 | -9/Materials | Core integrity fell below 20% 1418 | -9/Materials | Lost 4 parts (2n2w) 1434 | -9/Materials | Destroyed by G-34 Mercenary with Small Laser Last Messages --------------- T-07 Excavator is excavating. Acquired Spread Laser. Hvy. Assault Rifle destroyed. L-31 Rogue destroyed. K-01 Serf collects debris. Lgt. Treads destroyed. K-01 Serf collects debris. Aluminum Leg destroyed. Spread Laser destroyed. Released Field Recycling Unit. Released Sml. Storage Unit. Released Visual Processing Unit. Released Lgt. Treads. Slammed into G-34 Mercenary. K-01 Serf collects debris. Acquired Beam Cannon. S-10 Pest destroyed. Processing Tank disabled. S-10 Pest destroyed. Acquired 18 matter. Map ----- +----------------------------------------------------+ | ???????????????????#!#????# | | ???????????????????#=#????# | | # ####?#######?##### ###### | | # # #?# | | # # ### | | #[ + T^ | | # # ### ^ | | # !!! # #?# ^ | | # !!! ?# #####?## """ !# | | # !! ?# #??????# """^ % # | | # ??# #??????# """ # | | # ?# #??????# + | | # """?# #??#!! # | | # """ # #??#!! # | | # """ # #??#[[ #" "##### | | # / #??#[[ #"R"#???? | | ???##/## #??#!! #"""#???? | | ????? ## #??#!! ####????? | | #####+## #??##### #???????? | | # # #??????? #???????? | | # Yg"""# #??????? ????????? | | # """# #??????????????????? | | # g """# #??????????????????? | | # """# ######## #???????? | | # """# #??????? | | # ==@= + #??????? | | # *%s""# #??????? | | # ["""########+## #??????? | | # """#????????????????????? | | # """#????????????????????? | | # """#????????????????????? | | # #????????????????????? | | ##" "###????????????????????? | | ?#"R"#??????????????????????? | | ?#"""#??????????????????????? | | ?####???????????????????????? | | ????????????????????????????? | | ????????????????????????????? | | ????????????????????????????? | | ????????????????????????????? | | ????????????????????????????? | | ????????????????????????????? | | ????????????????????????????? | | ????????????????????????????? | | | | | | | | | | | | | +----------------------------------------------------+ Best States ------------- Heat Dissipation 28 Energy Generation 14 Energy Capacity 160 Matter Stores 300 Matter Capacity 300 Sight Range 18 Terrain Scan Density 10 Evasion (%) 50 Recoil Reduction 2 Item Schematics ----------------- None Robot Schematics ------------------ None Fabricated ------------ Nothing Alien Tech Used ----------------- None Achievements -------------- None Challenges ------------ None Game ------ Seed MagneticPlasmaThruster Manual? 0 Play Time 00:39:20 Cumulative 20.3 hours Start 2024.04.15 @ 17:29:02 End 2024.04.16 @ 00:53:24 Sessions 1 Manual Loads 0 Difficulty Rogue Special Mode None Game No. 9 Rogue 9 Adventurer 0 Explorer 0 Win Type - Total 0 Types 0/0/0/0/0/0/0/0/0 Lore% 8 Gallery% 18 Achievement% 14 Wizard Run 0 Options --------- Layout 1 ASCII 1 Keyboard 1 Movement Vi Keybinds 0 Fullscreen 1 Font 16/SmallcapsGlow Map View 55x38 Zoom Use 0% Tactical HUD 0 Map Filters NONE Filters NONE Steam 1 RUN: 622544b2-2e42-4deb-b631-f346045a43d3